[Event "48th Indian U15-ch Open 2023"]
[Site "Jalgaon"]
[Date "2024.01.01"]
[Round "8.2"]
[White "Mayank Chakraborty"]
[Black "Daksh Goyal"]
[Result "0-1"]
[ECO "B12"]
[WhiteElo "2403"]
[BlackElo "1814"]
[Annotator "RC"]
[PlyCount "134"]
[EventDate "2023.12.30"]
[EventType "swiss"]
[EventCountry "IND"]
[SourceTitle "playchess.com"]
[Source "ChessBase"]
[SourceQuality "1"]
[TimeControl "5400+30"]

1. e4 {[%emt 0:00:01]} c6 {[%emt 0:01:02]} 2. d4 {[%emt 0:00:02]} d5 {[%emt 0:00:08]} 3. e5 {[%emt 0:00:01]} Bf5 {[%emt 0:00:12]} 4. h4 {[%emt 0:00:02]} h5 {[%emt 0:00:08]} 5. Bd3 {[%emt 0:00:02]} Bxd3 {[%emt 0:00:39]} 6. Qxd3 {[%emt 0:00:01]} e6 {[%emt 0:01:02]} 7. Bg5 {[%emt 0:00:06]} Qc7 {[%emt 0:05:43]} 8. Nf3 {[%emt 0:02:56]} Ne7 {[%emt 0:08:04]} 9. Nc3 {[%emt 0:03:13]} Nf5 {[%emt 0:02:34]} 10. O-O {[%emt 0:00:50]} Be7 {[%emt 0:16:27]} 11. g3 {[%emt 0:05:14]} Nd7 {[%emt 0:20:00]} 12. Ne2 {[%emt 0:02:36]} Bxg5 {[%emt 0:05:55]} 13. Nxg5 {[%emt 0:00:11]} Nf8 {[%emt 0:09:39]} 14. Nf4 {[%emt 0:01:26]} Qe7 {[%emt 0:02:19]} 15. Rab1 {[%emt 0:07:08]} O-O-O {[%emt 0:07:32]} 16. b4 {[%emt 0:00:22]} Nh7 {[%emt 0:01:27]} 17. Nfh3 {[%emt 0:11:02]} Nxg5 {[%emt 0:01:18]} 18. Nxg5 {[%emt 0:02:00]} b5 {[%emt 0:02:48]} 19. a4 {[%emt 0:01:20]} a6 {[%emt 0:00:14]} 20. Ra1 {[%emt 0:01:42]} Kb7 {[%emt 0:00:39]} 21. Qc3 {[%emt 0:00:33]} Ra8 {[%emt 0:03:19]} 22. Nf3 {[%emt 0:01:38]} Kc7 {[%emt 0:02:41]} 23. Ra3 {[%emt 0:01:55]} Rhc8 {[%emt 0:01:53]} 24. Rfa1 {[%emt 0:03:37]} Kd8 {[%emt 0:00:35]} 25. Qd2 {[%emt 0:00:48]} Rab8 {[%emt 0:01:32]} 26. Ne1 {[%emt 0:01:09]} Ke8 {[%emt 0:02:26]} 27. c3 {[%emt 0:00:55]} a5 {[%emt 0:01:28]} 28. axb5 {[%emt 0:02:51]} axb4 {[%emt 0:00:14]} 29. Ra7 {[%emt 0:00:26]} Qd8 {[%emt 0:00:56]} 30. bxc6 {[%emt 0:04:32]} b3 {[%emt 0:01:33]} 31. Nd3 {[%emt 0:02:25]} Rxc6 {[%emt 0:00:37]} 32. Nc5 {[%emt 0:02:27]} Rc7 {[%emt 0:00:42]} 33. Qb2 {[%emt 0:00:55]} Rxa7 {[%emt 0:00:14]} 34. Rxa7 {[%emt 0:00:02]} g6 {[%emt 0:00:55]} 35. Nd7 {[%emt 0:00:34]} Qxd7 {[%emt 0:00:19]} 36. Rxd7 {[%emt 0:00:07]} Kxd7 {[%emt 0:00:01]} 37. Kf1 {[%emt 0:05:42]} Ne7 {[%emt 0:00:23]} 38. Ke2 {[%emt 0:01:01]} Nc6 {[%emt 0:01:03]} 39. Qa3 {[%emt 0:00:11]} Rb6 {[%emt 0:00:32]} 40. Qd6+ {[%emt 0:02:05]} Kc8 {[%emt 0:00:02]} 41. Qf8+ {[%emt 0:00:23]} Kb7 {[%emt 0:00:59]} 42. Qxf7+ {[%emt 0:00:14]} Ka6 {[%emt 0:00:16]} 43. Qxg6 {[%emt 0:00:22]} b2 {[%emt 0:00:13]} 44. Qb1 {[%emt 0:00:32]} Na5 {[%emt 0:00:18]} 45. g4 {[%emt 0:01:47]} Nc4 {[%emt 0:00:19]} 46. g5 {[%emt 0:01:03]} Na3 {[%emt 0:00:31]} 47. Qa2 {[%emt 0:01:12]} b1=Q {[%emt 0:00:27]} 48. Qxa3+ {[%emt 0:00:02]} Kb5 {[%emt 0:01:12]} 49. c4+ {[%emt 0:00:07]} dxc4 {[%emt 0:00:20]} 50. Qc5+ {[%emt 0:00:02]} Ka6 {[%emt 0:00:49]} 51. Qa3+ {[%emt 0:00:51]} Kb5 {[%emt 0:00:29]} 52. Qc5+ {[%emt 0:00:01]} Ka4 {[%emt 0:00:19]} 53. Qxc4+ {[%emt 0:00:05]} Qb4 {[%emt 0:00:43]} 54. Kd3 {[%emt 0:01:26]} Qxc4+ {[%emt 0:00:43]} 55. Kxc4 {[%emt 0:00:08]} Rc6+ {[%emt 0:00:26]} 56. Kd3 {[%emt 0:00:05]} Kb5 {[%emt 0:00:36]} 57. d5 {[%emt 0:04:08]} Rc5 {[%emt 0:00:32]} 58. dxe6 {[%emt 0:00:08]} Rxe5 {[%emt 0:00:19]} 59. Kd4 {[%emt 0:01:30]} Rxe6 {[%emt 0:00:08]} 60. Kd5 {[%emt 0:00:03]} Re2 {[%emt 0:00:43]} 61. f4 {[%emt 0:02:04]} Rf2 {[%emt 0:00:07]} 62. Ke5 {[%emt 0:02:03]} Kc6 {[%emt 0:00:12]} 63. f5 {[%emt 0:00:51]} Kd7 {[%emt 0:00:08]} 64. Kf6 {[%emt 0:00:31]} Rf4 {[%emt 0:01:22]} 65. g6 {[%emt 0:00:54]} Rxh4 {[%emt 0:00:47]} 66. g7 {[%emt 0:00:18]} Rg4 {[%emt 0:00:07]} 67. Kf7 {[%emt 0:00:08]} Kd6 {[%emt 0:00:48]} 0-1

[Event "48th Indian U15-ch Open 2023"]
[Site "Jalgaon"]
[Date "2024.01.01"]
[Round "8.3"]
[White "Bhoir Paras Dilip"]
[Black "Samyak Dharewa"]
[Result "1-0"]
[ECO "B43"]
[WhiteElo "1808"]
[BlackElo "1939"]
[Annotator "RC"]
[PlyCount "49"]
[EventDate "2023.12.30"]
[EventType "swiss"]
[EventCountry "IND"]
[SourceTitle "playchess.com"]
[Source "ChessBase"]
[SourceQuality "1"]
[TimeControl "5400+30"]

1. e4 {[%emt 0:00:05]} c5 {[%emt 0:00:12]} 2. Nf3 {[%emt 0:00:05]} e6 {[%emt 0:00:09]} 3. d4 {[%emt 0:00:04]} cxd4 {[%emt 0:00:10]} 4. Nxd4 {[%emt 0:00:04]} a6 {[%emt 0:00:14]} 5. Nc3 {[%emt 0:00:05]} Qc7 {[%emt 0:00:17]} 6. Bd3 {[%emt 0:00:18]} Nc6 {[%emt 0:00:19]} 7. Nxc6 {[%emt 0:00:29]} dxc6 {[%emt 0:00:14]} 8. O-O {[%emt 0:01:10]} e5 {[%emt 0:00:22]} 9. f4 {[%emt 0:00:31]} Nf6 {[%emt 0:00:34]} 10. Kh1 {[%emt 0:00:09]} Bc5 {[%emt 0:00:42]} 11. Qf3 {[%emt 0:12:46]} O-O {[%emt 0:08:02]} 12. f5 {[%emt 0:03:33]} Kh8 {[%emt 0:03:56]} 13. g4 {[%emt 0:05:00]} g6 {[%emt 0:04:07]} 14. Bc4 {[%emt 0:09:39]} gxf5 {[%emt 0:02:19]} 15. exf5 {[%emt 0:04:16]} Bd4 {[%emt 0:16:31]} 16. Bh6 {[%emt 0:10:41]} Re8 {[%emt 0:03:24]} 17. g5 {[%emt 0:07:56]} e4 {[%emt 0:00:33]} 18. Qd1 {[%emt 0:01:45]} Bxc3 {[%emt 0:21:19]} 19. bxc3 {[%emt 0:00:27]} Nd5 {[%emt 0:00:08]} 20. Qh5 {[%emt 0:07:11]} b5 {[%emt 0:10:16]} 21. Bxd5 {[%emt 0:12:03]} cxd5 {[%emt 0:00:15]} 22. g6 {[%emt 0:00:05]} fxg6 {[%emt 0:06:51]} 23. fxg6 {[%emt 0:00:21]} hxg6 {[%emt 0:00:09]} 24. Qxg6 {[%emt 0:00:19]} Be6 {[%emt 0:00:05]} 25. Bg5 {[%emt 0:01:10]} 1-0

[Event "48th Indian U15-ch Open 2023"]
[Site "Jalgaon"]
[Date "2024.01.01"]
[Round "8.4"]
[White "Madhvendra Pratap Sharma"]
[Black "Nirnay Garg"]
[Result "1-0"]
[ECO "B40"]
[WhiteElo "1803"]
[BlackElo "1894"]
[Annotator "NA RC"]
[PlyCount "70"]
[EventDate "2023.12.30"]
[EventType "swiss"]
[EventCountry "IND"]
[SourceTitle "playchess.com"]
[Source "ChessBase"]
[SourceQuality "1"]
[TimeControl "5400+30"]

1. e4 {[%emt 0:00:28]} c5 {[%emt 0:00:49]} 2. Nf3 {[%emt 0:00:13]} e6 {[%emt 0:00:04]} 3. b3 {[%emt 0:00:42]} b6 {[%emt 0:00:38]} 4. Bb2 {[%emt 0:00:24]} Bb7 {[%emt 0:00:12]} 5. Nc3 {[%emt 0:00:11]} a6 {[%emt 0:00:36]} 6. d4 {[%emt 0:00:51]} cxd4 {[%emt 0:00:06]} 7. Qxd4 {[%emt 0:01:58]} Nc6 {[%emt 0:00:45]} 8. Qd2 {[%emt 0:00:20]} Qc7 {[%emt 0:05:50]} 9. Bd3 {[%emt 0:07:55]} Nf6 {[%emt 0:02:15]} 10. O-O-O {[%emt 0:08:18]} Be7 {[%emt 0:13:38]} 11. Qe2 {[%emt 0:19:41]} d6 {[%emt 0:03:16]} 12. Rhg1 {[%emt 0:10:07]} Nd7 {[%emt 0:09:05]} 13. Kb1 {[%emt 0:02:00]} Bf6 {[%emt 0:11:08]} 14. Na4 $17 {[%emt 0:09:55]} (14. Qe3 $11 {remains equal.}) 14... Bxb2 {[%emt 0:11:27]} 15. Nxb2 {[%emt 0:00:13]} b5 {[%emt 0:01:32]} 16. Qd2 {[%emt 0:04:18]} Nde5 {[%emt 0:05:21]} 17. Be2 {[%emt 0:07:01]} O-O-O {[%emt 0:03:18]} 18. a4 {[%emt 0:03:47]} Qb6 {[%emt 0:04:49]} 19. Nd4 {[%emt 0:04:29]} bxa4 {[%emt 0:14:48]} 20. Nxa4 {[%emt 0:00:07]} Qa7 {[%emt 0:01:14]} 21. f4 {[%emt 0:05:01]} Nxd4 {[%emt 0:02:17]} 22. Qxd4 {[%emt 0:00:02]} Qxd4 {[%emt 0:00:03]} 23. Rxd4 {[%emt 0:00:01]} Nc6 {[%emt 0:00:02]} 24. Rd2 {[%emt 0:00:28]} Kc7 {[%emt 0:02:31]} 25. Rgd1 {[%emt 0:01:27]} e5 {[%emt 0:01:25]} 26. Nc3 {[%emt 0:01:01]} Ne7 {[%emt 0:01:27]} 27. Bc4 {[%emt 0:04:53]} f5 {[%emt 0:01:45]} 28. Be6 {[%emt 0:03:44]} fxe4 {[%emt 0:01:34]} 29. fxe5 {[%emt 0:00:32]} d5 {[%emt 0:01:20]} 30. Nxe4 {[%emt 0:03:29]} dxe4 {[%emt 0:01:37]} 31. Rd7+ {[%emt 0:00:02]} Rxd7 {[%emt 0:00:04]} 32. Rxd7+ {[%emt 0:00:01]} Kb6 {[%emt 0:00:17]} 33. Rxe7 {[%emt 0:00:01]} Rf8 {[%emt 0:01:26]} 34. Bc4 {[%emt 0:00:06]} e3 {[%emt 0:00:07]} 35. Kc1 {[%emt 0:00:25]} Rf2 1-0

[Event "48th Indian U15-ch Open 2023"]
[Site "Jalgaon"]
[Date "2024.01.01"]
[Round "8.5"]
[White "Sherla Prathamesh"]
[Black "Jihan Tejas Shah"]
[Result "0-1"]
[ECO "E63"]
[WhiteElo "1726"]
[BlackElo "1891"]
[Annotator "NA RC COMBH"]
[PlyCount "130"]
[EventDate "2023.12.30"]
[EventType "swiss"]
[EventCountry "IND"]
[SourceTitle "playchess.com"]
[Source "ChessBase"]
[SourceQuality "1"]
[TimeControl "5400+30"]

1. c4 {[%emt 0:00:05]} Nf6 {[%emt 0:00:52]} 2. g3 {[%emt 0:00:07]} g6 {[%emt 0:00:20]} 3. Bg2 {[%emt 0:00:07]} Bg7 {[%emt 0:00:03]} 4. Nc3 {[%emt 0:00:09]} O-O {[%emt 0:00:04]} 5. d4 {[%emt 0:01:48]} d6 {[%emt 0:00:21]} 6. h3 {[%emt 0:00:10]} Nc6 {[%emt 0:01:23]} 7. Nf3 {[%emt 0:00:16]} a6 {[%emt 0:02:04]} 8. O-O {[%emt 0:00:37]} Bd7 {[%emt 0:00:04]} 9. e4 {[%emt 0:01:33]} e5 {[%emt 0:00:06]} 10. d5 {[%emt 0:00:48]} Nd4 {[%emt 0:00:04]} 11. Be3 {[%emt 0:07:55]} Nxf3+ {[%emt 0:01:26]} 12. Qxf3 {[%emt 0:00:14]} Qc8 {[%emt 0:00:15]} 13. Bg5 {[%emt 0:07:39]} Nh5 {[%emt 0:01:46]} 14. Kh2 {[%emt 0:06:59]} f5 {[%emt 0:03:49]} 15. Qe2 {[%emt 0:04:41]} f4 {[%emt 0:01:49]} 16. g4 {[%emt 0:01:40]} f3 {[%emt 0:00:25]} 17. Bxf3 {[%emt 0:00:55]} Nf4 {[%emt 0:00:04]} 18. Bxf4 {[%emt 0:02:35]} Rxf4 {[%emt 0:00:05]} 19. Bg2 {[%emt 0:01:23]} Qd8 {[%emt 0:02:27]} 20. f3 {[%emt 0:00:34]} Qg5 {[%emt 0:00:00]} 21. Qd3 {[%emt 0:07:08]} Raf8 {[%emt 0:00:17]} 22. Ne2 {[%emt 0:01:11]} R4f7 {[%emt 0:00:36]} 23. b4 {[%emt 0:02:49]} h5 {[%emt 0:04:32]} 24. Kg1 {[%emt 0:04:18]} Bh6 {[%emt 0:01:07]} 25. Rad1 {[%emt 0:07:14]} b5 {[%emt 0:04:40]} 26. c5 {[%emt 0:06:37]} dxc5 {[%emt 0:00:52]} 27. bxc5 {[%emt 0:00:21]} Qe3+ {[%emt 0:00:19]} 28. Kh1 {[%emt 0:01:23]} hxg4 {[%emt 0:01:14]} 29. Qxe3 {[%emt 0:02:23]} Bxe3 {[%emt 0:00:05]} 30. fxg4 {[%emt 0:00:50]} Bxc5 $17 {[%emt 0:00:54]} 31. Rxf7 {[%emt 0:03:20]} Rxf7 {[%emt 0:00:05]} 32. Rf1 {[%emt 0:01:05]} b4 {[%emt 0:00:50]} 33. Rxf7 {[%emt 0:01:02]} Kxf7 {[%emt 0:00:47]} 34. Nc1 {[%emt 0:01:23]} Bb5 {[%emt 0:01:43]} 35. Bf3 {[%emt 0:00:49]} Be3 {[%emt 0:01:23]} 36. Nb3 {[%emt 0:00:42]} Bd3 {[%emt 0:02:42]} 37. Na5 {[%emt 0:00:23]} Bc5 {[%emt 0:00:23]} 38. Nb3 {[%emt 0:01:35]} Bb6 {[%emt 0:00:55]} 39. Kg2 {[%emt 0:05:14]} Bb1 {[%emt 0:01:12]} 40. Nc1 {[%emt 0:00:44]} a5 {[%emt 0:02:06]} 41. Kf1 {[%emt 0:03:03]} Be3 {[%emt 0:00:20]} 42. Nb3 {[%emt 0:00:24]} a4 {[%emt 0:00:41]} 43. Na5 {[%emt 0:00:11]} Bxa2 {[%emt 0:01:23]} 44. Nc6 {[%emt 0:00:08]} Bc4+ {[%emt 0:00:39]} 45. Be2 {[%emt 0:00:21]} Bxe2+ {[%emt 0:00:33]} 46. Kxe2 {[%emt 0:00:03]} Bc5 {[%emt 0:00:27]} 47. Nxe5+ {[%emt 0:00:09]} Kg7 {[%emt 0:00:04]} 48. Nd3 {[%emt 0:02:48]} b3 {[%emt 0:00:14]} 49. Kd1 {[%emt 0:01:05]} Bd4 {[%emt 0:00:25]} 50. Nf4 {[%emt 0:00:41]} Be5 {[%emt 0:00:15]} 51. Ne6+ {[%emt 0:00:58]} Kf6 {[%emt 0:00:10]} 52. Nc5 {[%emt 0:00:35]} a3 {[%emt 0:00:09]} 53. Nxb3 {[%emt 0:00:48]} a2 {[%emt 0:00:03]} 54. h4 {[%emt 0:00:59]} a1=Q+ {[%emt 0:00:07]} 55. Nxa1 {[%emt 0:00:03]} Bxa1 {[%emt 0:00:06]} 56. Ke2 {[%emt 0:00:03]} g5 {[%emt 0:01:49]} 57. h5 {[%emt 0:00:40]} Ke5 {[%emt 0:00:25]} 58. Ke3 {[%emt 0:00:23]} Bb2 {[%emt 0:00:25]} 59. h6 {[%emt 0:02:04]} Kf6 {[%emt 0:00:32]} 60. Kd3 {[%emt 0:01:14]} Kg6 {[%emt 0:00:13]} 61. Kc4 {[%emt 0:00:13]} Kxh6 {[%emt 0:00:19]} 62. Kc5 {[%emt 0:00:11]} Be5 {[%emt 0:01:10]} 63. Kc6 {[%emt 0:00:20]} Kg6 {[%emt 0:00:04]} 64. Kd7 {[%emt 0:00:05]} Kf6 {[%emt 0:00:03]} 65. Ke8 {[%emt 0:00:42]} Bd6 {[%emt 0:00:06]} 0-1

[Event "48th Indian U15-ch Open 2023"]
[Site "Jalgaon"]
[Date "2024.01.01"]
[Round "8.6"]
[White "Anirudh, R."]
[Black "Sureka Akshat"]
[Result "1-0"]
[ECO "B08"]
[WhiteElo "1621"]
[BlackElo "1808"]
[Annotator "NA RC COMBH"]
[PlyCount "69"]
[EventDate "2023.12.30"]
[EventType "swiss"]
[EventCountry "IND"]
[SourceTitle "playchess.com"]
[Source "ChessBase"]
[SourceQuality "1"]
[TimeControl "5400+30"]

1. d4 {[%emt 0:00:49]} Nf6 {[%emt 0:00:33]} 2. Nf3 {[%emt 0:00:08]} g6 {[%emt 0:00:36]} 3. Nc3 {[%emt 0:00:08]} Bg7 {[%emt 0:00:28]} 4. e4 {[%emt 0:00:22]} d6 {[%emt 0:00:02]} 5. Bf4 {[%emt 0:00:24]} O-O {[%emt 0:00:44]} 6. Qd2 {[%emt 0:00:12]} c6 {[%emt 0:08:24]} 7. O-O-O {[%emt 0:03:39]} b5 {[%emt 0:02:05]} 8. Bd3 {[%emt 0:02:58]} b4 {[%emt 0:13:06]} 9. Nb1 {[%emt 0:02:30]} a5 {[%emt 0:01:18]} 10. Bh6 {[%emt 0:01:42]} Nbd7 {[%emt 0:21:25]} 11. e5 {[%emt 0:09:56]} dxe5 {[%emt 0:09:12]} 12. Bxg7 {[%emt 0:15:29]} Kxg7 {[%emt 0:00:01]} 13. dxe5 {[%emt 0:00:02]} Nd5 {[%emt 0:04:40]} 14. h4 {[%emt 0:01:08]} Nc5 {[%emt 0:07:33]} 15. h5 {[%emt 0:04:30]} Nxd3+ {[%emt 0:00:19]} 16. cxd3 {[%emt 0:02:44]} Rh8 {[%emt 0:00:09]} 17. Rh4 {[%emt 0:01:21]} h6 {[%emt 0:04:57]} 18. hxg6 {[%emt 0:12:52]} fxg6 {[%emt 0:00:01]} 19. Rdh1 {[%emt 0:10:36]} h5 {[%emt 0:00:02]} 20. Qg5 {[%emt 0:07:44]} e6 {[%emt 0:03:37]} 21. Qg3 {[%emt 0:02:37]} Qf8 {[%emt 0:00:52]} 22. Nbd2 {[%emt 0:04:08]} Ba6 {[%emt 0:03:08]} 23. Nd4 {[%emt 0:00:49]} Re8 {[%emt 0:02:23]} 24. Ne4 {[%emt 0:01:27]} c5 {[%emt 0:01:05]} 25. Ne2 {[%emt 0:00:35]} c4 {[%emt 0:07:28]} 26. Nf4 {[%emt 0:01:01]} Nxf4 {[%emt 0:00:43]} 27. Rxf4 {[%emt 0:00:02]} Qe7 {[%emt 0:00:07]} 28. Rf6 {[%emt 0:00:27]} Rh6 {[%emt 0:00:15]} 29. Rxh5 {[%emt 0:00:54]} Reh8 {[%emt 0:00:21]} 30. Qg5 {[%emt 0:02:01]} Qc7 {[%emt 0:01:28]} 31. d4 {[%emt 0:01:56]} c3 {[%emt 0:00:56]} 32. Rxe6 {[%emt 0:03:15]} cxb2+ {[%emt 0:01:45]} 33. Kxb2 {[%emt 0:00:03]} Qf7 {[%emt 0:02:35]} 34. Re7 {[%emt 0:00:06]} Rxh5 {[%emt 0:00:04]} 35. Qf6+ {[%emt 0:00:04]} 1-0

[Event "48th Indian U15-ch Open 2023"]
[Site "Jalgaon"]
[Date "2024.01.01"]
[Round "8.7"]
[White "Jain, Kushagra"]
[Black "Ghadge Harsh"]
[Result "1-0"]
[ECO "B11"]
[WhiteElo "1804"]
[BlackElo "1663"]
[Annotator "NA RC COMBH"]
[PlyCount "89"]
[EventDate "2023.12.30"]
[EventType "swiss"]
[EventCountry "IND"]
[SourceTitle "playchess.com"]
[Source "ChessBase"]
[SourceQuality "1"]
[TimeControl "5400+30"]

1. e4 {[%emt 0:00:39]} c6 {[%emt 0:00:08]} 2. Nf3 {[%emt 0:00:06]} d5 {[%emt 0:00:04]} 3. Nc3 {[%emt 0:00:03]} Bg4 {[%emt 0:00:04]} 4. Be2 {[%emt 0:00:03]} e6 {[%emt 0:05:45]} 5. O-O {[%emt 0:00:34]} Nf6 {[%emt 0:04:57]} 6. e5 {[%emt 0:00:39]} Nfd7 {[%emt 0:00:16]} 7. d4 {[%emt 0:00:06]} Be7 {[%emt 0:00:45]} 8. Ne1 {[%emt 0:04:04]} Bxe2 {[%emt 0:02:27]} 9. Nxe2 {[%emt 0:00:04]} c5 {[%emt 0:03:06]} 10. c3 {[%emt 0:00:03]} Nc6 {[%emt 0:01:29]} 11. Be3 {[%emt 0:12:40]} Qb6 {[%emt 0:01:20]} 12. Qd2 {[%emt 0:09:41]} cxd4 {[%emt 0:04:17]} 13. cxd4 {[%emt 0:03:52]} Bb4 {[%emt 0:03:52]} 14. Qd3 {[%emt 0:02:50]} Rc8 {[%emt 0:15:39]} 15. Nf3 {[%emt 0:10:44]} Be7 {[%emt 0:04:15]} 16. Qd2 {[%emt 0:09:59]} Qa6 {[%emt 0:02:23]} 17. Nf4 {[%emt 0:07:31]} Nb6 {[%emt 0:02:44]} 18. b3 {[%emt 0:06:42]} Nb4 {[%emt 0:02:41]} 19. a3 {[%emt 0:03:07]} Nc6 {[%emt 0:09:25]} 20. Nh5 {[%emt 0:06:44]} g6 {[%emt 0:05:58]} 21. Nf6+ {[%emt 0:03:59]} Bxf6 {[%emt 0:00:20]} 22. exf6 {[%emt 0:00:02]} Nd7 {[%emt 0:00:41]} 23. Bh6 {[%emt 0:06:30]} Nxf6 {[%emt 0:04:34]} 24. Bg7 {[%emt 0:00:10]} Ne4 {[%emt 0:00:03]} 25. Qh6 {[%emt 0:00:01]} Rg8 {[%emt 0:06:21]} 26. Qxh7 {[%emt 0:00:06]} Ke7 {[%emt 0:02:00]} 27. Rac1 {[%emt 0:09:00]} Qe2 {[%emt 0:01:47]} 28. h3 {[%emt 0:03:56]} g5 {[%emt 0:03:19]} 29. Rce1 {[%emt 0:00:28]} Qd3 {[%emt 0:09:44]} 30. Re3 {[%emt 0:00:31]} Qb5 {[%emt 0:02:17]} 31. Qh6 {[%emt 0:00:05]} f6 {[%emt 0:01:00]} 32. Rxe4 {[%emt 0:00:23]} dxe4 {[%emt 0:00:25]} 33. Qxf6+ {[%emt 0:00:04]} Kd6 {[%emt 0:00:28]} 34. Ne5 {[%emt 0:01:27]} Nd8 {[%emt 0:01:41]} 35. Bf8+ {[%emt 0:00:35]} Kc7 {[%emt 0:00:42]} 36. Rc1+ {[%emt 0:00:02]} Kb6 {[%emt 0:01:02]} 37. Rxc8 {[%emt 0:00:09]} Nc6 {[%emt 0:00:29]} 38. Bc5+ {[%emt 0:00:20]} Ka6 {[%emt 0:00:04]} 39. Rxg8 {[%emt 0:00:04]} Qxb3 {[%emt 0:00:09]} 40. Nxc6 {[%emt 0:00:27]} bxc6 {[%emt 0:00:05]} 41. Qe7 {[%emt 0:00:41]} Qd1+ {[%emt 0:00:04]} 42. Kh2 {[%emt 0:00:03]} Kb5 {[%emt 0:00:04]} 43. Qxe6 {[%emt 0:00:08]} e3 {[%emt 0:00:05]} 44. Rb8+ {[%emt 0:00:08]} Ka5 {[%emt 0:00:03]} 45. Qxe3 {[%emt 0:00:20]} 1-0

[Event "48th Indian U15-ch Open 2023"]
[Site "Jalgaon"]
[Date "2024.01.01"]
[Round "8.8"]
[White "Bivor Adak"]
[Black "Swastik, Singhal"]
[Result "1-0"]
[ECO "B12"]
[WhiteElo "1791"]
[BlackElo "1611"]
[Annotator "NA RC COMBH"]
[PlyCount "99"]
[EventDate "2023.12.30"]
[EventType "swiss"]
[EventCountry "IND"]
[SourceTitle "playchess.com"]
[Source "ChessBase"]
[SourceQuality "1"]
[TimeControl "5400+30"]

1. e4 {[%emt 0:00:09]} c6 {[%emt 0:00:09]} 2. d4 {[%emt 0:01:28]} d5 {[%emt 0:00:09]} 3. e5 {[%emt 0:01:46]} Bf5 {[%emt 0:00:11]} 4. Nd2 {[%emt 0:02:23]} e6 {[%emt 0:00:50]} 5. Nb3 {[%emt 0:00:11]} c5 {[%emt 0:02:28]} 6. dxc5 {[%emt 0:00:11]} Bxc5 {[%emt 0:00:38]} 7. Nxc5 {[%emt 0:00:28]} Qa5+ {[%emt 0:00:06]} 8. c3 {[%emt 0:00:50]} Qxc5 {[%emt 0:00:11]} 9. Be3 {[%emt 0:01:02]} Qc7 {[%emt 0:00:21]} 10. f4 {[%emt 0:01:36]} Ne7 {[%emt 0:01:16]} 11. Nf3 {[%emt 0:01:44]} O-O {[%emt 0:01:54]} 12. Be2 {[%emt 0:01:44]} Nd7 {[%emt 0:02:51]} 13. Nd4 {[%emt 0:03:28]} a6 {[%emt 0:07:50]} 14. O-O {[%emt 0:01:22]} Be4 {[%emt 0:05:56]} 15. Rc1 {[%emt 0:11:44]} Nb6 {[%emt 0:05:20]} 16. b3 {[%emt 0:00:12]} Rfd8 {[%emt 0:02:30]} 17. g4 {[%emt 0:05:03]} Nd7 {[%emt 0:07:59]} 18. a4 {[%emt 0:08:03]} Rac8 {[%emt 0:03:59]} 19. Qe1 {[%emt 0:01:42]} Nc6 {[%emt 0:02:24]} 20. Qf2 {[%emt 0:09:51]} Nxd4 {[%emt 0:15:21]} 21. cxd4 {[%emt 0:01:18]} Qb6 {[%emt 0:00:06]} 22. f5 {[%emt 0:00:08]} exf5 {[%emt 0:01:45]} 23. gxf5 {[%emt 0:00:09]} Qxb3 {[%emt 0:04:37]} 24. e6 {[%emt 0:08:36]} Nf6 {[%emt 0:02:00]} 25. Bg5 {[%emt 0:00:38]} Qh3 {[%emt 0:03:27]} 26. a5 {[%emt 0:23:57]} fxe6 {[%emt 0:05:33]} 27. Rxc8 {[%emt 0:01:35]} Rxc8 {[%emt 0:00:01]} 28. fxe6 {[%emt 0:00:10]} Qxe6 {[%emt 0:03:01]} 29. Qg3 {[%emt 0:00:18]} Kh8 {[%emt 0:02:28]} 30. Qh4 {[%emt 0:01:19]} Rc2 {[%emt 0:03:40]} 31. Rf2 {[%emt 0:01:57]} Bg6 {[%emt 0:05:03]} 32. Bxf6 {[%emt 0:04:24]} gxf6 {[%emt 0:01:18]} 33. Rxf6 {[%emt 0:00:27]} Qe7 {[%emt 0:04:16]} 34. Bf1 {[%emt 0:02:36]} Qg7 {[%emt 0:01:07]} 35. Qg5 {[%emt 0:01:37]} Be4 {[%emt 0:01:41]} 36. Qxg7+ {[%emt 0:00:09]} Kxg7 {[%emt 0:00:02]} 37. Rb6 {[%emt 0:00:10]} Rc7 {[%emt 0:00:05]} 38. Bh3 {[%emt 0:01:08]} Rc1+ {[%emt 0:00:55]} 39. Kf2 {[%emt 0:00:06]} Rc2+ {[%emt 0:00:04]} 40. Kg3 {[%emt 0:00:20]} Rc7 {[%emt 0:00:41]} 41. Kf4 {[%emt 0:00:11]} Re7 {[%emt 0:01:42]} 42. Bc8 {[%emt 0:00:16]} Rf7+ {[%emt 0:01:23]} 43. Ke5 {[%emt 0:00:10]} Rf2 {[%emt 0:01:10]} 44. Rxb7+ {[%emt 0:00:05]} Kh8 {[%emt 0:00:54]} 45. Rb8 {[%emt 0:04:18]} Rxh2 {[%emt 0:01:57]} 46. Bxa6+ {[%emt 0:00:01]} Kg7 {[%emt 0:00:12]} 47. Bf1 {[%emt 0:00:56]} Ra2 {[%emt 0:01:18]} 48. a6 {[%emt 0:00:04]} Bg2 {[%emt 0:01:04]} 49. Bxg2 {[%emt 0:00:17]} Rxg2 {[%emt 0:00:02]} 50. a7 {[%emt 0:00:08]} 1-0

[Event "48th Indian U15-ch Open 2023"]
[Site "Jalgaon"]
[Date "2024.01.01"]
[Round "8.8"]
[White "Bivor Adak"]
[Black "Swastik Singhal"]
[Result "*"]
[ECO "B12"]
[WhiteElo "1791"]
[BlackElo "1611"]
[Annotator "NA RC COMBH"]
[PlyCount "21"]
[EventDate "2023.12.30"]
[EventType "swiss"]
[EventCountry "IND"]
[SourceTitle "playchess.com"]
[Source "ChessBase"]
[SourceQuality "1"]
[TimeControl "5400+30"]

1. e4 {[%emt 0:00:09]} c6 {[%emt 0:00:09]} 2. d4 {[%emt 0:01:28]} d5 {[%emt 0:00:09]} 3. e5 {[%emt 0:01:46]} Bf5 {[%emt 0:00:11]} 4. Nd2 {[%emt 0:02:23]} e6 {[%emt 0:00:50]} 5. Nb3 {[%emt 0:00:11]} c5 {[%emt 0:02:28]} 6. dxc5 {[%emt 0:00:11]} Bxc5 {[%emt 0:00:38]} 7. Nxc5 {[%emt 0:00:28]} Qa5+ {[%emt 0:00:06]} 8. c3 {[%emt 0:00:50]} Qxc5 {[%emt 0:00:11]} 9. Be3 {[%emt 0:01:02]} Qc7 {[%emt 0:00:21]} 10. f4 {[%emt 0:01:36]} Ne7 {[%emt 0:01:16]} 11. Nf3 {[%emt 0:01:44]} *